fUST/lending_fUST_20241121
["ID","MTS","AMOUNT","RATE_DAILY","PERIOD"]
[342878140,1732192236050,-500.0,0.00019247,2]
[342878141,1732192236059,-500.0,0.00019247,2]
[342878142,1732192236069,-500.0,0.00019247,2]
[342878143,1732192236079,-500.0,0.00019247,2]
[342878144,1732192236088,-500.0,0.00019247,2]
[342878145,1732192236098,-500.0,0.00019247,2]
[342878146,1732192236108,-500.0,0.00019247,2]
[342878147,1732192236117,-500.0,0.00019247,2]
[342878148,1732192236127,-500.0,0.00019247,2]
[342878149,1732192236136,-500.0,0.00019247,2]
[342878150,1732192236146,-500.0,0.00019247,2]
[342878151,1732192236155,-500.0,0.00019247,2]
[342878152,1732192236164,-500.0,0.00019247,2]
[342878153,1732192236177,-500.0,0.00019247,2]
[342878154,1732192236186,-500.0,0.00019247,2]
[342878155,1732192236195,-500.0,0.00019247,2]
[342878156,1732192236204,-435.03874855,0.00019247,2]
[342878157,1732192237346,-64.96125145,0.00019247,2]
[342878158,1732192237356,-500.0,0.00019247,2]
[342878159,1732192237366,-500.0,0.00019247,2]
[342878160,1732192237376,-500.0,0.00019247,2]
[342878163,1732192237385,-500.0,0.00019247,2]
[342878165,1732192237395,-500.0,0.00019247,2]
[342878167,1732192237405,-500.0,0.00019247,2]
[342878169,1732192237414,-500.0,0.00019247,2]
[342878170,1732192237424,-500.0,0.00019247,2]
[342878171,1732192237433,-500.0,0.00019247,2]
[342878172,1732192237442,-350.0,0.00019247,2]
[342878173,1732192237452,-500.0,0.00019247,2]
[342878174,1732192237462,-500.0,0.00019247,2]
[342878176,1732192237472,-500.0,0.00019247,2]
[342878177,1732192237481,-500.0,0.00019247,2]
[342878178,1732192237491,-500.0,0.00019247,2]
[342878179,1732192237501,-500.0,0.00019247,2]
[342878180,1732192237514,-500.0,0.00019247,2]
[342878181,1732192237523,-500.0,0.00019247,2]
[342878182,1732192237533,-500.0,0.00019247,2]
[342878183,1732192237542,-500.0,0.00019247,2]
[342878184,1732192237551,-500.0,0.00019247,2]
[342878185,1732192237561,-500.0,0.00019247,2]
[342878186,1732192237570,-649.14785935,0.00019247,2]
[342878187,1732192237580,-500.0,0.00019247,2]
[342878189,1732192237589,-500.0,0.00019247,2]
[342878191,1732192237598,-500.0,0.00019247,2]
[342878193,1732192237608,-500.0,0.00019247,2]
[342878195,1732192237617,-500.0,0.00019247,2]
[342878197,1732192237627,-500.0,0.00019247,2]
[342878199,1732192237638,-500.0,0.00019247,2]
[342878201,1732192237651,-500.0,0.00019247,2]
[342878203,1732192237661,-500.0,0.00019247,2]
[342878205,1732192237671,-500.0,0.00019247,2]
[342878207,1732192237681,-500.0,0.00019247,2]
[342878209,1732192237693,-500.0,0.00019247,2]
[342878211,1732192237702,-500.0,0.00019247,2]
[342878213,1732192237712,-500.0,0.00019247,2]
[342878215,1732192237721,-500.0,0.00019247,2]
[342878217,1732192237731,-500.0,0.00019247,2]
[342878219,1732192237740,-500.0,0.00019247,2]
[342878221,1732192237750,-500.0,0.00019247,2]
[342878222,1732192237759,-500.0,0.00019247,2]
[342878224,1732192237769,-500.0,0.00019247,2]
[342878226,1732192237778,-499.12007518,0.00019247,2]
[342878228,1732192237788,-500.0,0.00019247,2]
[342878230,1732192237797,-500.0,0.00019247,2]
[342878232,1732192237806,-500.0,0.00019247,2]
[342878234,1732192237815,-500.0,0.00019247,2]
[342878236,1732192237825,-500.0,0.00019247,2]
[342878238,1732192237834,-500.0,0.00019247,2]
[342878240,1732192237843,-500.0,0.00019247,2]
[342878242,1732192237853,-500.0,0.00019247,2]
[342878244,1732192237862,-500.0,0.00019247,2]
[342878245,1732192237872,-500.0,0.00019247,2]
[342878246,1732192237881,-500.0,0.00019247,2]
[342878247,1732192237890,-500.0,0.00019247,2]
[342878248,1732192237900,-500.0,0.00019247,2]
[342878249,1732192237909,-500.0,0.00019247,2]
[342878250,1732192237919,-500.0,0.00019247,2]
[342878251,1732192237931,-500.0,0.00019247,2]
[342878252,1732192237940,-500.0,0.00019247,2]
[342878253,1732192237950,-500.0,0.00019247,2]
[342878254,1732192237961,-500.0,0.00019247,2]
[342878255,1732192237971,-500.0,0.00019247,2]
[342878256,1732192237982,-500.0,0.00019247,2]
[342878257,1732192237996,-500.0,0.00019247,2]
[342878258,1732192238006,-500.0,0.00019247,2]
[342878259,1732192238016,-500.0,0.00019247,2]
[342878260,1732192238026,-500.0,0.00019247,2]
[342878261,1732192238035,-500.0,0.00019247,2]
[342878262,1732192238045,-500.0,0.00019247,2]
[342878263,1732192238054,-500.0,0.00019247,2]
[342878264,1732192238064,-4831.33632473,0.00019259,2]
[342878265,1732192238074,-500.0,0.000193,2]
[342878266,1732192238083,-413.23462671,0.000193,2]
[342878267,1732192238092,-500.0,0.000193,2]
[342878268,1732192238102,-500.0,0.000193,2]
[342878269,1732192238111,-500.0,0.000193,2]
[342878270,1732192238121,-501.30588808,0.000193,2]
[342878271,1732192238130,-500.45558429,0.000193,2]
[342878272,1732192238139,-273.40705529,0.000193,2]
[342878273,1732192238148,-500.0,0.000193,2]
[342878274,1732192238158,-500.0,0.000193,2]
[342878275,1732192238167,-500.0,0.000193,2]
[342878276,1732192238180,-500.0,0.000193,2]
[342878277,1732192238194,-500.0,0.000193,2]
[342878278,1732192238203,-500.0,0.000193,2]
[342878279,1732192238212,-500.0,0.000193,2]
[342878280,1732192238222,-500.41168473,0.000193,2]
[342878281,1732192238231,-500.0,0.000193,2]
[342878282,1732192238240,-1152.0,0.00019349,2]
[342878283,1732192238250,-9999.99806429,0.00019413,2]
[342878284,1732192238260,-163.362733,0.0001942,2]
[342878285,1732192238269,-500.0,0.00019475,2]
[342878286,1732192238279,-1152.0,0.00019617,2]
[342878287,1732192238289,-9999.99806429,0.00019661,2]
[342878288,1732192238299,-263.58695677,0.00019712,2]
[342878289,1732192238308,-538.00034481,0.00019712,2]
[342878290,1732192238317,-347.80620231,0.00019712,2]
[342878291,1732192238327,-326.58330857,0.00019712,2]
[342878292,1732192238337,-2485.6169864,0.00019713,2]
[342878293,1732192238346,-9821.669313,0.00019733,2]
[342878294,1732192238356,-829.18905367,0.0001977,4]
[342878295,1732192238365,-1633.45796532,0.00019788,4]
[342878296,1732192238375,-4831.33632473,0.00019807,2]
[342878297,1732192238384,-9999.99806429,0.00019837,2]
[342878298,1732192238394,-419.32930402,0.00019848,2]
[342878299,1732192238403,-500.48092378,0.00019848,2]
[342878300,1732192238413,-698.51247498,0.00019848,2]
[342878301,1732192238423,-1000.0,0.00019848,2]
[342878302,1732192238436,-593.95185125,0.00019848,2]
[342878303,1732192238445,-1000.0,0.00019848,2]
[342878304,1732192238454,-1000.0,0.00019848,2]
[342878305,1732192238463,-970.9394152,0.00019848,2]
[342878306,1732192238473,-504.06606491,0.00019848,2]
[342878307,1732192238482,-1000.0,0.00019848,2]
[342878308,1732192238491,-117024.74601464,0.0001999,2]
[342878309,1732192238500,-151.0,0.0001999,2]
[342878311,1732192238509,-151.0,0.0001999,2]
[342878313,1732192238518,-792.879996,0.0001999,2]
[342878315,1732192238529,-792.879996,0.0001999,2]
[342878317,1732192238538,-151.0,0.0001999,2]
[342878319,1732192238547,-19164.32385078,0.0002,2]
[342878321,1732192238557,-500.0,0.0002,2]
[342878323,1732192238567,-500.0,0.0002,2]
[342878324,1732192238576,-509.66368714,0.0002,2]
[342878326,1732192238586,-265.72346666,0.0002,2]
[342878327,1732192238595,-422.9510906,0.0002,2]
[342878328,1732192238605,-500.0,0.0002,2]
[342878329,1732192238614,-4346.55104002,0.0002,2]
[342878330,1732192238624,-351.3434988,0.0002,2]
[342878331,1732192238633,-9999.99806429,0.00020021,2]
[342878332,1732192238643,-163.17944407,0.00020023,2]
[342878333,1732192238655,-500.0,0.000203,2]
[342878334,1732192238664,-2485.6169864,0.00020347,2]
[342878335,1732192238816,-4831.33632473,0.00020356,2]
[342878336,1732192238826,-60897.26236604,0.00020377,2]
[342878337,1732192238836,-151.0,0.00020377,2]
[342878338,1732192238845,-151.0,0.00020377,2]
[342878339,1732192238855,-792.879996,0.00020377,2]
[342878340,1732192238865,-792.879996,0.00020377,2]
[342878341,1732192238874,-151.0,0.00020377,2]
[342878342,1732192238884,-222.958379,0.00020447,2]
[342878343,1732192238893,-9999.99806429,0.00020492,2]
[342878344,1732192238903,-502.08872997,0.00020548,2]
[342878345,1732192238913,-1005.12624829,0.00020548,2]
[342878346,1732192238922,-1000.0,0.00020548,2]
[342878347,1732192238936,-9999.99806429,0.00020634,2]
[342878348,1732192238945,-1500.0,0.0002085,2]
[342878349,1732192238954,-1500.0,0.0002085,2]
[342878350,1732192238964,-502.57266988,0.0002085,2]
[342878351,1732192238974,-4831.33632473,0.00020904,2]
[342878352,1732192238983,-2485.6169864,0.00020982,2]
[342878353,1732192238993,-665.88825383,0.00021,2]
[342878354,1732192239002,-4773.10698777,0.00021,2]
[342878355,1732192239013,-9999.99806429,0.00021018,2]
[342878356,1732192239022,-1613.0,0.00021211,2]
[342878357,1732192239032,-9999.99806429,0.00021273,2]
[342878358,1732192239041,-4831.33632473,0.00021452,2]
[342878359,1732192239050,-12220.81092505,0.00021517,2]
[342878360,1732192239060,-164.14070077,0.0002155,2]
[342878361,1732192239069,-1613.0,0.00021579,2]
[342878362,1732192239078,-1000.0,0.00021616,2]
[342878363,1732192239088,-341.73660676,0.00021616,2]
[342878364,1732192239097,-2485.6169864,0.00021616,2]
[342878365,1732192239107,-9999.99806429,0.00021642,2]
[342878366,1732192239117,-341.73660671,0.00021659,2]
[342878367,1732192239127,-310.00954169,0.00021677,2]
[342878368,1732192239136,-151.0,0.000217,3]
[342878369,1732192239145,-151.0,0.000217,4]
[342878370,1732192239155,-296.240395,0.000217,4]
[342878371,1732192239164,-616.0,0.000217,2]
[342878372,1732192239173,-283.41561,0.000217,2]
[342878373,1732192239186,-300.09258,0.000217,2]
[342878374,1732192239195,-300.09258,0.000217,2]
[342878375,1732192239204,-151.0,0.000217,2]
[342878376,1732192239214,-197.735857,0.000217,2]
[342878378,1732192239223,-199.479431,0.000217,2]
[342878379,1732192239232,-197.735857,0.000217,2]
[342878380,1732192239241,-151.0,0.000217,2]
[342878381,1732192239250,-603.010353,0.000217,2]
[342878382,1732192239259,-603.010353,0.000217,2]
[342878383,1732192239268,-341.73660671,0.00021701,2]
[342878384,1732192239278,-839.28633196,0.00021707,2]
[342878386,1732192239288,-501.15233569,0.00021714,2]
[342878388,1732192239297,-230000.0,0.00021716,2]
[342878390,1732192239306,-151.0,0.00021716,2]
[342878392,1732192239315,-151.0,0.00021716,2]
[342878394,1732192239325,-151.232603,0.00021716,2]
[342878396,1732192239335,-185.135974,0.00021716,2]
[342878398,1732192239344,-151.0,0.00021716,2]
[342878400,1732192239353,-185.135974,0.00021716,2]
[342878402,1732192239362,-151.0,0.00021716,2]
[342878403,1732192239371,-719.825489,0.00021716,2]
[342878404,1732192239380,-719.825489,0.00021716,2]
[342878405,1732192239390,-1196.01607,0.00021716,2]
[342878406,1732192239399,-1196.01607,0.00021716,2]
[342878407,1732192239408,-151.0,0.00021716,2]
[342878408,1732192239417,-151.0,0.00021716,2]
[342878409,1732192239427,-216.893621,0.00021716,2]
[342878410,1732192239436,-216.893621,0.00021716,2]
[342878411,1732192239445,-151.0,0.00021716,2]
[342878412,1732192239453,-209.047269,0.00021716,2]
[342878413,1732192239462,-209.047269,0.00021716,2]
[342878414,1732192239471,-276.506402,0.00021716,2]
[342878415,1732192239480,-151.0,0.00021716,2]
[342878416,1732192239490,-151.0,0.00021716,2]
[342878417,1732192239499,-151.0,0.00021716,2]
[342878418,1732192239509,-151.0,0.00021716,2]
[342878419,1732192239518,-151.0,0.00021716,2]
[342878420,1732192239527,-164.872446,0.00021716,2]
[342878421,1732192239537,-164.872446,0.00021716,2]
[342878422,1732192239546,-151.0,0.00021716,2]
[342878423,1732192239556,-4701.390094,0.00021716,2]
[342878425,1732192239565,-4701.390094,0.00021716,2]
[342878427,1732192239575,-151.40253,0.00021716,2]
[342878428,1732192239584,-603.315888,0.00021716,2]
[342878430,1732192239593,-4128.435467,0.00021716,2]
[342878432,1732192239603,-4128.435467,0.00021716,2]
[342878433,1732192239612,-603.315888,0.00021716,2]
[342878435,1732192239621,-151.0,0.00021716,2]
[342878437,1732192239630,-1448.329993,0.00021716,2]
[342878439,1732192239640,-1448.329993,0.00021716,2]
[342878441,1732192239653,-694.736774,0.00021716,2]
[342878443,1732192239662,-694.736774,0.00021716,2]
[342878444,1732192239672,-5586.499572,0.00021716,2]
[342878445,1732192239684,-3774.85569,0.00021716,2]
[342878446,1732192239693,-3774.85569,0.00021716,2]
[342878447,1732192239702,-5586.499572,0.00021716,2]
[342878448,1732192239711,-838.317637,0.00021716,2]
[342878449,1732192239720,-838.317637,0.00021716,2]
[342878450,1732192239731,-478.981146,0.00021716,2]
[342878451,1732192239740,-478.981146,0.00021716,2]
[342878452,1732192239750,-1829.130552,0.00021716,2]
[342878453,1732192239760,-1829.130552,0.00021716,2]
[342878454,1732192239769,-198.76165,0.00021716,2]
[342878455,1732192239778,-2676.342813,0.00021716,2]
[342878456,1732192239788,-198.76165,0.00021716,2]
[342878457,1732192239797,-151.0,0.00021716,2]
[342878458,1732192239806,-2676.342813,0.00021716,2]
[342878459,1732192239815,-151.0,0.00021716,2]
[342878460,1732192239824,-159.462373,0.00021716,2]
[342878461,1732192239834,-1222.658041,0.00021716,2]
[342878462,1732192239843,-1222.658041,0.00021716,2]
[342878463,1732192239853,-445.139115,0.00021716,2]
[342878464,1732192239862,-151.0,0.00021716,2]
[342878465,1732192239872,-445.139115,0.00021716,2]
[342878466,1732192239882,-269.573794,0.00021716,2]
[342878467,1732192239892,-179.693997,0.00021716,2]
[342878468,1732192239903,-179.693997,0.00021716,2]
[342878469,1732192239912,-303.333871,0.00021716,2]
[342878470,1732192239922,-303.333871,0.00021716,2]
[342878471,1732192239938,-301.394901,0.00021716,2]
[342878472,1732192239948,-301.394901,0.00021716,2]
[342878473,1732192239957,-151.724821,0.00021716,2]
[342878474,1732192239967,-151.724821,0.00021716,2]
[342878475,1732192239977,-300.09258,0.00021716,2]
[342878476,1732192239986,-300.09258,0.00021716,2]
[342878477,1732192239995,-151.0,0.00021716,2]
[342878478,1732192240004,-197.735857,0.00021716,2]
[342878479,1732192240014,-397.229719,0.00021716,2]
[342878480,1732192240023,-197.735857,0.00021716,2]
[342878481,1732192240033,-397.229719,0.00021716,2]
[342878482,1732192240042,-151.0,0.00021716,2]
[342878483,1732192240052,-151.0,0.00021716,2]
[342878484,1732192240062,-151.0,0.00021716,2]
[342878485,1732192240072,-792.879996,0.00021716,2]
[342878486,1732192240082,-792.879996,0.00021716,2]
[342878487,1732192240092,-603.010353,0.00021716,2]
[342878488,1732192240102,-151.0,0.00021716,2]
[342878489,1732192240112,-603.010353,0.00021716,2]
[342878490,1732192240121,-250000.0,0.00021717,2]
[342878492,1732192240129,-276.362461,0.00021717,2]
[342878493,1732192240138,-276.362461,0.00021717,2]
[342878494,1732192240148,-151.0,0.00021717,2]
[342878495,1732192240157,-151.0,0.00021717,2]
[342878496,1732192240167,-708.534866,0.00021717,2]
[342878497,1732192240178,-708.534866,0.00021717,2]
[342878498,1732192240188,-151.0,0.00021717,2]
[342878499,1732192240197,-185.135974,0.00021717,2]
[342878501,1732192240206,-151.0,0.00021717,2]
[342878502,1732192240216,-185.135974,0.00021717,2]
[342878503,1732192240225,-151.0,0.00021717,2]
[342878504,1732192240234,-719.825489,0.00021717,2]
[342878505,1732192240243,-719.825489,0.00021717,2]
[342878506,1732192240253,-1196.01607,0.00021717,2]
[342878507,1732192240262,-1196.01607,0.00021717,2]
[342878508,1732192240271,-151.0,0.00021717,2]
[342878509,1732192240281,-195.104257,0.00021717,2]
[342878510,1732192240290,-152.890774,0.00021717,2]
[342878511,1732192240299,-195.104257,0.00021717,2]
[342878512,1732192240308,-216.893621,0.00021717,2]
[342878513,1732192240318,-216.893621,0.00021717,2]
[342878514,1732192240327,-151.741271,0.00021717,2]
[342878515,1732192240337,-209.047269,0.00021717,2]
[342878516,1732192240346,-209.047269,0.00021717,2]
[342878517,1732192240355,-151.0,0.00021717,2]
[342878518,1732192240364,-151.0,0.00021717,2]
[342878519,1732192240374,-151.0,0.00021717,2]
[342878520,1732192240383,-151.0,0.00021717,2]
[342878521,1732192240392,-151.0,0.00021717,2]
[342878522,1732192240402,-164.872446,0.00021717,2]
[342878523,1732192240411,-164.872446,0.00021717,2]
[342878524,1732192240420,-151.0,0.00021717,2]
[342878525,1732192240433,-4701.390094,0.00021717,2]
[342878526,1732192240443,-4701.390094,0.00021717,2]
[342878527,1732192240452,-603.315888,0.00021717,2]
[342878528,1732192240462,-4128.435467,0.00021717,2]
[342878529,1732192240472,-4128.435467,0.00021717,2]
[342878530,1732192240481,-603.315888,0.00021717,2]
[342878531,1732192240490,-151.0,0.00021717,2]
[342878532,1732192240499,-1448.329993,0.00021717,2]
[342878533,1732192240508,-1448.329993,0.00021717,2]
[342878534,1732192240517,-694.736774,0.00021717,2]
[342878535,1732192240527,-694.736774,0.00021717,2]
[342878536,1732192240536,-5586.499572,0.00021717,2]
[342878537,1732192240545,-3774.85569,0.00021717,2]
[342878538,1732192240554,-3774.85569,0.00021717,2]
[342878539,1732192240563,-5586.499572,0.00021717,2]
[342878540,1732192240573,-838.317637,0.00021717,2]
[342878541,1732192240583,-838.317637,0.00021717,2]
[342878542,1732192240592,-478.981146,0.00021717,2]
[342878543,1732192240601,-478.981146,0.00021717,2]
[342878544,1732192240610,-1829.130552,0.00021717,2]
[342878545,1732192240619,-1829.130552,0.00021717,2]
[342878546,1732192240628,-198.76165,0.00021717,2]
[342878547,1732192240637,-2676.342813,0.00021717,2]
[342878548,1732192240646,-198.76165,0.00021717,2]
[342878549,1732192240657,-2676.342813,0.00021717,2]
[342878550,1732192240666,-151.0,0.00021717,2]
[342878551,1732192240678,-1222.658041,0.00021717,2]
[342878552,1732192240687,-1222.658041,0.00021717,2]
[342878553,1732192240697,-445.139115,0.00021717,2]
[342878554,1732192240707,-151.0,0.00021717,2]
[342878555,1732192240716,-445.139115,0.00021717,2]
[342878556,1732192240725,-179.693997,0.00021717,2]
[342878557,1732192240737,-179.693997,0.00021717,2]
[342878558,1732192240747,-303.333871,0.00021717,2]
[342878559,1732192240756,-303.333871,0.00021717,2]
[342878560,1732192240766,-301.394901,0.00021717,2]
[342878561,1732192240775,-301.394901,0.00021717,2]
[342878562,1732192240784,-151.724821,0.00021717,2]
[342878563,1732192240794,-151.724821,0.00021717,2]
[342878564,1732192240803,-300.09258,0.00021717,2]
[342878565,1732192240812,-300.09258,0.00021717,2]
[342878566,1732192240822,-151.0,0.00021717,2]
[342878567,1732192240832,-197.735857,0.00021717,2]
[342878568,1732192240841,-397.229719,0.00021717,2]
[342878569,1732192240850,-197.735857,0.00021717,2]
[342878570,1732192240860,-397.229719,0.00021717,2]
[342878571,1732192240869,-151.0,0.00021717,2]
[342878572,1732192240879,-151.0,0.00021717,2]
[342878573,1732192240888,-151.0,0.00021717,2]
[342878574,1732192240897,-792.879996,0.00021717,2]
[342878575,1732192240906,-792.879996,0.00021717,2]
[342878576,1732192240916,-603.010353,0.00021717,2]
[342878577,1732192240928,-151.0,0.00021717,2]
[342878578,1732192240937,-603.010353,0.00021717,2]
[342878579,1732192240947,-341.73660671,0.00021744,2]
[342878580,1732192240956,-811.633,0.00021773,2]
[342878581,1732192240965,-341.73660671,0.00021787,2]
[342878582,1732192240974,-151.0,0.000218,3]
[342878583,1732192240984,-151.0,0.000218,4]
[342878584,1732192240992,-151.0,0.000218,4]
[342878585,1732192241002,-151.0,0.000218,4]
[342878586,1732192241011,-151.0,0.000218,3]
[342878587,1732192241020,-151.0,0.000218,4]
[342878588,1732192241029,-2000.0,0.00021815,2]
[342878589,1732192241038,-151934.28733163,0.00021815,2]
[342878590,1732192241047,-151.0,0.00021815,2]
[342878591,1732192241057,-151.0,0.00021815,2]
[342878592,1732192241066,-792.879996,0.00021815,2]
[342878593,1732192241075,-792.879996,0.00021815,2]
[342878594,1732192241084,-151.0,0.00021815,2]
[342878595,1732192241094,-2000.0,0.00021816,2]
[342878596,1732192241103,-330.0,0.00021817,2]
[342878597,1732192241112,-2000.0,0.00021817,2]
[342878598,1732192241121,-2455.3219619,0.00021817,2]
[342878599,1732192241243,-151.0,0.00021817,2]
[342878600,1732192241253,-151.0,0.00021817,2]
[342878601,1732192241262,-151.0,0.00021817,2]
[342878602,1732192241271,-151.0,0.00021817,2]
[342878603,1732192241283,-151.0,0.00021817,2]
[342878604,1732192241291,-341.73660671,0.00021829,2]
[342878605,1732192241300,-200.0,0.0002184,6]
[342878606,1732192241310,-2927.0,0.0002187,2]
[342878607,1732192241319,-341.73660671,0.00021872,2]
[342878608,1732192241328,-151.0,0.000219,3]
[342878609,1732192241338,-151.0,0.000219,3]
[342878610,1732192241347,-151.0,0.000219,4]
[342878611,1732192241356,-1050.45935455,0.000219,2]
[342878612,1732192241365,-1050.45935455,0.000219,2]
[342878613,1732192241374,-1050.45935455,0.000219,2]
[342878614,1732192241383,-1050.45935455,0.000219,2]
[342878615,1732192241393,-151.0,0.000219,4]
[342878616,1732192241401,-151.0,0.000219,4]
[342878617,1732192241410,-341.73660671,0.00021915,2]
[342878618,1732192241420,-2000.0,0.00021915,2]
[342878619,1732192241433,-245.82441159,0.00021916,2]
[342878620,1732192241445,-942.37460995,0.00021916,2]
[342878621,1732192241455,-4000.0,0.00021917,2]
[342878622,1732192241465,-151.0,0.00021917,2]
[342878623,1732192241474,-151.0,0.00021917,2]
[342878624,1732192241483,-500.0,0.00021917,2]
[342878625,1732192241493,-192.231772,0.00021917,2]
[342878626,1732192241502,-273.75702687,0.00021917,2]
[342878627,1732192241512,-361.97477656,0.00021917,2]
[342878628,1732192241521,-192.231772,0.00021917,2]
[342878629,1732192241531,-501.52012386,0.00021917,2]
[342878630,1732192241540,-500.0,0.00021917,2]
[342878631,1732192241549,-500.0,0.00021917,2]
[342878632,1732192241559,-500.0,0.00021917,2]
[342878633,1732192241568,-301.467533,0.00021917,2]
[342878634,1732192241577,-301.467533,0.00021917,2]
[342878635,1732192241587,-301.467533,0.00021917,2]
[342878636,1732192241596,-301.467533,0.00021917,2]
[342878637,1732192241606,-301.467533,0.00021917,2]
[342878638,1732192241615,-301.467533,0.00021917,2]
[342878639,1732192241624,-301.467533,0.00021917,2]
[342878640,1732192241634,-301.467533,0.00021917,2]
[342878641,1732192241646,-301.467533,0.00021917,2]
[342878642,1732192241655,-301.467533,0.00021917,2]
[342878643,1732192241665,-500.0,0.00021917,2]
[342878644,1732192241677,-151.0,0.00021917,2]
[342878645,1732192241688,-151.0,0.00021917,2]
[342878646,1732192241697,-151.0,0.00021917,2]
[342878647,1732192241706,-151.0,0.00021917,2]
[342878648,1732192241715,-366.66437,0.00021917,2]
[342878649,1732192241727,-366.66437,0.00021917,2]
[342878650,1732192241736,-366.66437,0.00021917,2]
[342878651,1732192241746,-366.66437,0.00021917,2]
[342878652,1732192241755,-500.0,0.00021917,2]
[342878653,1732192241764,-366.66437,0.00021917,2]
[342878654,1732192241774,-366.66437,0.00021917,2]
[342878655,1732192241784,-366.66437,0.00021917,2]
[342878656,1732192241793,-366.66437,0.00021917,2]
[342878657,1732192241803,-500.0,0.00021917,2]
[342878658,1732192241812,-151.0,0.00021917,2]
[342878659,1732192241822,-154.794644,0.00021917,2]
[342878660,1732192241831,-545.9465731,0.00021917,2]
[342878661,1732192241841,-500.0,0.00021917,2]
[342878662,1732192241850,-489.18159509,0.00021917,2]
[342878663,1732192241860,-500.6981675,0.00021917,2]
[342878664,1732192241869,-500.0,0.00021917,2]
[342878665,1732192241879,-500.0,0.00021917,2]
[342878666,1732192241888,-500.0,0.00021917,2]
[342878667,1732192241897,-501.55812973,0.00021917,2]
[342878668,1732192241907,-500.0,0.00021917,2]
[342878669,1732192241916,-500.0,0.00021917,2]
[342878670,1732192241929,-502.26035948,0.00021917,2]
[342878671,1732192241939,-500.0,0.00021917,2]
[342878672,1732192241948,-500.0,0.00021917,2]
[342878673,1732192241958,-500.0,0.00021917,2]
[342878674,1732192241967,-500.0,0.00021917,2]
[342878675,1732192241976,-394.47632288,0.00021917,2]
[342878676,1732192241985,-197.00599166,0.00021917,2]
[342878677,1732192241995,-500.0,0.00021917,2]
[342878678,1732192242005,-501.83079014,0.00021917,2]
[342878679,1732192242014,-500.0,0.00021917,2]
[342878680,1732192242023,-500.0,0.00021917,2]
[342878681,1732192242032,-500.0,0.00021917,2]
[342878682,1732192242041,-373.93318157,0.00021917,2]
[342878683,1732192242051,-500.0,0.00021917,2]
[342878684,1732192242060,-500.0,0.00021917,2]
[342878685,1732192242070,-500.0,0.00021917,2]
[342878686,1732192242080,-500.0,0.00021917,2]
[342878687,1732192242090,-500.0,0.00021917,2]
[342878688,1732192242099,-500.0,0.00021917,2]
[342878689,1732192242109,-163.62667,0.00021917,2]
[342878690,1732192242118,-500.0,0.00021917,2]
[342878691,1732192242128,-501.73422018,0.00021917,2]
[342878692,1732192242137,-500.0,0.00021917,2]
[342878693,1732192242147,-151.0,0.00021917,2]
[342878694,1732192242156,-151.0,0.00021917,2]
[342878695,1732192242165,-151.0,0.00021917,2]
[342878696,1732192242175,-151.0,0.00021917,2]
[342878697,1732192242188,-151.0,0.00021917,2]
[342878698,1732192242198,-151.982718,0.00021917,2]
[342878699,1732192242207,-151.0,0.00021917,2]
[342878700,1732192242216,-151.0,0.00021917,2]
[342878701,1732192242225,-535.82529381,0.00021917,2]
[342878702,1732192242234,-151.0,0.00021917,2]